fUST/lending_fUST_20250816
["ID","MTS","AMOUNT","RATE_DAILY","PERIOD"]
[379578220,1755340041922,1327.47588007,0.00019886,2]
[379578222,1755340070628,1073.8369058,0.00019213,2]
[379578223,1755340070658,14211.5233606,0.00018,2]
[379578224,1755340070680,20000.0,0.00018,2]
[379578225,1755340070702,20000.0,0.00018,2]
[379578226,1755340070724,15917.1085044,0.00018,2]
[379578227,1755340074512,4082.8914956,0.00018,2]
[379578228,1755340074534,906.18341376,0.00018,2]
[379578229,1755340088110,5000.0,0.00019563,2]
[379578230,1755340092554,2057.22164271,0.00019205,5]
[379578231,1755340103287,5000.0,0.00019563,2]
[379578232,1755340113551,7036.59494353,0.00017,2]
[379578233,1755340113574,4788.36173068,0.00017,2]
[379578234,1755340116292,14664.89511334,0.00018,2]
[379578236,1755340118499,546.74315598,0.00019563,2]
[379578237,1755340118522,4453.25684402,0.00019563,2]
[379578238,1755340120148,452.99999947,0.00027712,120]
[379578239,1755340121955,159.3788869,0.00019,20]
[379578243,1755340133532,5000.0,0.00019563,2]
[379578250,1755340148721,5000.0,0.00019563,2]
[379578251,1755340164013,5000.0,0.00019563,2]
[379578253,1755340179170,387.36426908,0.00019563,2]
[379578254,1755340179193,4612.63573092,0.00019563,2]
[379578255,1755340194689,5000.0,0.00019563,2]
[379578258,1755340209806,5000.0,0.00019563,2]
[379578259,1755340210995,185.1706466,0.00027712,120]
[379578262,1755340224937,1167.69155971,0.00019563,2]
[379578263,1755340226197,333.533902,0.00013699,2]
[379578321,1755340232498,-157.15477921,0.0001976,2]
[379578323,1755340232508,-300.0,0.00019783,2]
[379578325,1755340232517,-300.0,0.00019783,2]
[379578327,1755340232526,-300.0,0.00019783,2]
[379578329,1755340232535,-22.15166163,0.00019783,2]
[379578331,1755340232547,-277.84833837,0.00019783,2]
[379578333,1755340232555,-1200.0,0.00019783,2]
[379578335,1755340232564,-2920.27322543,0.00019784,2]
[379578341,1755340232602,-2079.72677457,0.00019784,2]
[379578343,1755340232611,-191.20944131,0.00019784,2]
[379578345,1755340232620,-631.43863538,0.00019884,2]
[379578347,1755340232629,-2108.9727877,0.00019884,2]
[379578349,1755340232638,-193.5531962,0.00019886,2]
[379578351,1755340232648,-15094.15163625,0.000199,2]
[379578353,1755340232657,-251.65738875,0.00019973,2]
[379578355,1755340232666,-600.0,0.00019973,2]
[379578356,1755340232675,-346.47446473,0.00019984,2]
[379578358,1755340232685,-438.52417743,0.00019984,2]
[379578359,1755340232695,-50000.0,0.00019984,2]
[379578360,1755340232705,-500.0,0.00019985,2]
[379578361,1755340232715,-292.12413488,0.00019985,2]
[379578362,1755340232724,-160.0,0.00019986,2]
[379578363,1755340232734,-159492.45889081,0.00019986,2]
[379578364,1755340232743,-67327.72550858,0.0001999,2]
[379578366,1755340232755,-4677.07279506,0.0001999,2]
[379578367,1755340232766,-19104.2588756,0.0001999,2]
[379578392,1755340238107,-500.0,0.00019983,2]
[379578393,1755340238116,-500.0,0.00019983,2]
[379578394,1755340238125,-500.0,0.00019983,2]
[379578396,1755340238135,-286.39763772,0.00019983,2]
[379578398,1755340238158,-213.60236228,0.00019983,2]
[379578399,1755340238168,-500.0,0.00019983,2]
[379578400,1755340238177,-500.0,0.00019983,2]
[379578401,1755340238187,-500.0,0.00019983,2]
[379578403,1755340238196,-500.0,0.00019983,2]
[379578404,1755340238206,-500.0,0.00019983,2]
[379578405,1755340238217,-500.0,0.00019983,2]
[379578406,1755340238230,-500.0,0.00019983,2]
[379578407,1755340238240,-500.0,0.00019983,2]
[379578408,1755340238249,-500.0,0.00019983,2]
[379578409,1755340238259,-500.0,0.00019983,2]
[379578410,1755340238270,-189.32777283,0.00019983,2]
[379578411,1755340238279,-283.96077487,0.00019983,2]
[379578412,1755340238289,-500.0,0.00019983,2]
[379578413,1755340238299,-193.34244925,0.00019983,2]
[379578414,1755340238309,-500.0,0.00019983,2]
[379578415,1755340238319,-500.0,0.00019983,2]
[379578416,1755340238328,-500.0,0.00019983,2]
[379578417,1755340238337,-500.0,0.00019983,2]
[379578418,1755340238347,-500.0,0.00019983,2]
[379578419,1755340238356,-500.0,0.00019983,2]
[379578420,1755340238365,-500.0,0.00019983,2]
[379578421,1755340238375,-500.0,0.00019983,2]
[379578422,1755340238384,-500.0,0.00019983,2]
[379578423,1755340238393,-500.0,0.00019983,2]
[379578424,1755340238403,-500.0,0.00019983,2]
[379578425,1755340238412,-500.0,0.00019983,2]
[379578426,1755340238422,-500.0,0.00019983,2]
[379578427,1755340238431,-500.0,0.00019983,2]
[379578428,1755340238441,-500.0,0.00019983,2]
[379578429,1755340238450,-500.0,0.00019983,2]
[379578430,1755340238459,-500.0,0.00019983,2]
[379578431,1755340238470,-291.31445329,0.00019983,2]
[379578432,1755340238480,-500.0,0.00019983,2]
[379578433,1755340238490,-500.0,0.00019983,2]
[379578434,1755340238500,-500.0,0.00019983,2]
[379578435,1755340238509,-500.0,0.00019983,2]
[379578436,1755340238519,-500.0,0.00019983,2]
[379578437,1755340238528,-500.0,0.00019983,2]
[379578438,1755340238538,-500.0,0.00019983,2]
[379578440,1755340238547,-500.0,0.00019983,2]
[379578441,1755340238556,-500.0,0.00019983,2]
[379578442,1755340238566,-500.0,0.00019983,2]
[379578443,1755340238575,-500.0,0.00019983,2]
[379578444,1755340238584,-500.0,0.00019983,2]
[379578445,1755340238594,-500.0,0.00019983,2]
[379578446,1755340238603,-500.0,0.00019983,2]
[379578447,1755340238613,-500.0,0.00019983,2]
[379578448,1755340238622,-500.0,0.00019983,2]
[379578449,1755340238632,-500.0,0.00019983,2]
[379578450,1755340238641,-500.0,0.00019983,2]
[379578451,1755340238651,-500.0,0.00019983,2]
[379578452,1755340238660,-169.87436781,0.00019983,2]
[379578453,1755340238669,-500.0,0.00019983,2]
[379578454,1755340238678,-500.0,0.00019983,2]
[379578455,1755340238687,-500.0,0.00019983,2]
[379578456,1755340238696,-500.0,0.00019983,2]
[379578457,1755340238705,-500.0,0.00019983,2]
[379578458,1755340238715,-500.0,0.00019983,2]
[379578459,1755340238724,-500.0,0.00019983,2]
[379578460,1755340238733,-500.0,0.00019983,2]
[379578461,1755340238742,-500.0,0.00019983,2]
[379578462,1755340238751,-500.0,0.00019983,2]
[379578463,1755340238760,-500.0,0.00019983,2]
[379578464,1755340238770,-500.0,0.00019983,2]
[379578465,1755340238779,-177.65902711,0.00019983,2]
[379578466,1755340238789,-500.0,0.00019983,2]
[379578467,1755340238798,-500.0,0.00019983,2]
[379578468,1755340238808,-500.0,0.00019983,2]
[379578469,1755340238817,-500.0,0.00019983,2]
[379578470,1755340238826,-500.0,0.00019983,2]
[379578471,1755340238835,-500.0,0.00019983,2]
[379578472,1755340238845,-500.0,0.00019983,2]
[379578473,1755340238854,-500.0,0.00019983,2]
[379578474,1755340238863,-325.37554908,0.00019983,2]
[379578475,1755340238872,-500.0,0.00019983,2]
[379578476,1755340238882,-500.0,0.00019983,2]
[379578477,1755340238891,-500.0,0.00019983,2]
[379578478,1755340238901,-1225.45919285,0.0001999,2]
[379578479,1755340238910,-334.65907131,0.0002,7]
[379578480,1755340238919,-19757.66230418,0.0002,2]
[379578481,1755340238929,-150.75878594,0.00020086,2]
[379578482,1755340238938,-15161.33076493,0.00020087,2]
[379578483,1755340238947,-53535.1419101,0.00020087,2]
[379578484,1755340238957,-333.533902,0.00020187,2]
[379578485,1755340238968,-505.99678611,0.00020259,2]
[379578486,1755340238977,-181.9932876,0.00020265,2]
[379578487,1755340238987,-200.0,0.00020384,20]
[379578488,1755340238996,-200.0,0.00020384,20]
[379578489,1755340239006,-200.0,0.00020384,20]
[379578490,1755340239016,-200.0,0.00020384,20]
[379578491,1755340239025,-200.0,0.00020384,20]
[379578492,1755340239035,-200.0,0.00020384,20]
[379578493,1755340239044,-200.0,0.00020384,20]
[379578494,1755340239053,-200.0,0.00020384,20]
[379578495,1755340239063,-200.0,0.00020384,20]
[379578496,1755340239072,-200.0,0.00020384,20]
[379578497,1755340239082,-200.0,0.00020384,20]
[379578498,1755340239092,-15094.15163611,0.00020408,2]
[379578499,1755340239102,-568.08,0.00020414,2]
[379578500,1755340239111,-1327.47588007,0.00020437,2]
[379578501,1755340239120,-240.0,0.00020791,20]
[379578502,1755340239129,-15094.15163611,0.00020916,2]
[379578503,1755340239138,-2108.9727877,0.00020988,2]
[379578504,1755340239148,-1327.47588007,0.00020989,2]
[379578505,1755340239157,-151.7571885,0.0002109,2]
[379578506,1755340239167,-293.7439445,0.00021178,2]
[379578507,1755340239176,-293.7439445,0.00021178,2]
[379578508,1755340239186,-293.7439445,0.00021178,2]
[379578509,1755340239195,-293.7439445,0.00021178,2]
[379578510,1755340239205,-293.7439445,0.00021178,2]
[379578511,1755340239215,-288.0,0.00021207,20]
[379578512,1755340239225,-534.46,0.0002132,3]
[379578513,1755340239239,-267.23,0.0002132,3]
[379578514,1755340239249,-801.69,0.0002132,3]
[379578515,1755340239258,-843.58077381,0.0002133,2]
[379578516,1755340239268,-160.0,0.0002133,2]
[379578517,1755340239278,-160.0,0.0002133,2]
[379578518,1755340239287,-160.0,0.0002133,2]
[379578519,1755340239297,-160.0,0.0002133,2]
[379578520,1755340239307,-160.0,0.0002134,2]
[379578521,1755340239317,-168.0,0.0002135,2]
[379578522,1755340239326,-406.5331918,0.00021378,2]
[379578523,1755340239335,-1136.16,0.00021387,2]
[379578524,1755340239344,-160.0,0.00021397,2]
[379578525,1755340239353,-215.68093138,0.00021397,2]
[379578526,1755340239362,-417.15472785,0.00021397,2]
[379578527,1755340239372,-160.0,0.00021397,2]
[379578528,1755340239381,-232.11368524,0.00021397,2]
[379578529,1755340239391,-291.68196718,0.00021399,2]
[379578530,1755340239400,-151.0,0.00021399,2]
[379578531,1755340239411,-17842.522448,0.00021399,2]
[379578532,1755340239420,-151.0,0.00021399,2]
[379578533,1755340239429,-151.0,0.00021399,2]
[379578534,1755340239438,-151.0,0.00021399,2]
[379578535,1755340239447,-151.0,0.00021399,2]
[379578536,1755340239456,-151.0,0.00021399,2]
[379578537,1755340239465,-2183.31810187,0.00021399,2]
[379578538,1755340239475,-151.0,0.00021399,2]
[379578539,1755340239484,-151.0,0.00021399,2]
[379578540,1755340239493,-151.0,0.00021399,2]
[379578541,1755340239503,-151.0,0.00021399,2]
[379578542,1755340239511,-151.0,0.00021399,2]
[379578543,1755340239520,-151.0,0.00021399,2]
[379578544,1755340239530,-151.0,0.00021399,2]
[379578545,1755340239539,-151.0,0.00021399,2]
[379578546,1755340239548,-151.0,0.00021399,2]
[379578547,1755340239556,-151.0,0.00021399,2]
[379578548,1755340239566,-151.0,0.00021399,2]
[379578549,1755340239575,-151.0,0.00021399,2]
[379578550,1755340239584,-151.0,0.00021399,2]
[379578551,1755340239593,-151.0,0.00021399,2]
[379578552,1755340239603,-151.0,0.00021399,2]
[379578553,1755340239612,-151.0,0.00021399,2]
[379578554,1755340239621,-151.0,0.00021399,2]
[379578555,1755340239631,-151.0,0.00021399,2]
[379578556,1755340239641,-151.0,0.00021399,2]
[379578557,1755340239650,-151.0,0.00021399,2]
[379578558,1755340239658,-151.0,0.00021399,2]
[379578559,1755340239667,-151.0,0.00021399,2]
[379578560,1755340239676,-160.0,0.00021412,2]
[379578561,1755340239686,-160.0,0.00021412,2]
[379578562,1755340239695,-15094.15163611,0.00021424,2]
[379578563,1755340239705,-195.0,0.00021485,2]
[379578564,1755340239715,-10256.15870089,0.000215,2]
[379578565,1755340239729,-346.16352336,0.000215,2]
[379578566,1755340239740,-1362.26238777,0.000215,2]
[379578567,1755340239751,-3196.7461529,0.000215,2]
[379578568,1755340239761,-168.0,0.00021511,2]
[379578569,1755340239771,-223.93302879,0.0002154,2]
[379578570,1755340239783,-1103.54285128,0.0002154,2]
[379578571,1755340239793,-420.0,0.00021546,2]
[379578572,1755340239802,-420.0,0.00021546,2]
[379578573,1755340239812,-302.0,0.00021546,2]
[379578574,1755340239821,-345.0,0.00021631,20]
[379578575,1755340239831,-553.64028425,0.0002165,2]
[379578579,1755340242525,-1126.35971575,0.0002165,2]
[379578580,1755340242535,-168.0,0.00021664,2]
[379578582,1755340242544,-1680.0,0.00021761,2]
[379578583,1755340242554,-151.0,0.000218,3]
[379578584,1755340242563,-2012.02334861,0.00021817,2]
[379578585,1755340242576,-506.51676143,0.00021817,2]
[379578588,1755340242587,-754.45986901,0.00021817,2]
[379578590,1755340242598,-2778.04629647,0.00021817,2]
[379578592,1755340242608,-607.091838,0.00021817,2]
[379578594,1755340242619,-680.73721652,0.00021817,2]
[379578595,1755340242630,-460.0,0.00021817,2]
[379578597,1755340242641,-2150.81427181,0.00021817,2]
[379578610,1755340243124,-293.7439445,0.00021178,2]
[379578611,1755340243134,-13386.97727904,0.00021817,2]
[379578637,1755340250908,-901.63921764,0.00021817,2]
[379578638,1755340250920,-304.49590655,0.00021817,2]
[379578639,1755340250931,-452.29082512,0.00021817,2]
[379578640,1755340250943,-4090.22211442,0.00021817,2]
[379578641,1755340250955,-479.70272905,0.00021817,2]
[379578642,1755340250966,-1849.65755344,0.00021817,2]
[379578667,1755340410823,295.60221422,0.00019299,2]
[379578669,1755340436831,3590.53659315,0.00019563,2]
[379578670,1755340436859,1409.46340685,0.00019563,2]
[379578672,1755340444658,5000.0,0.00019563,2]
[379578674,1755340453481,5000.0,0.00019563,2]
[379578675,1755340462187,1796.94160929,0.00019563,2]
[379578677,1755340470919,900.89329063,0.00019563,2]
[379578685,1755340547860,5892.70169323,0.00018923,2]
[379578686,1755340547888,20000.0,0.00018923,2]
[379578687,1755340547913,20000.0,0.00018923,2]
[379578688,1755340547938,20000.0,0.00018923,2]
[379578689,1755340547965,20000.0,0.00018923,2]
[379578690,1755340547993,20000.0,0.00018923,2]
[379578691,1755340548022,20000.0,0.00018923,2]
[379578692,1755340554245,5000.0,0.00018763,2]
[379578695,1755340561356,-6772.64741497,0.00018923,2]
[379578696,1755340562261,0.35258503,0.00018763,2]
[379578697,1755340562284,926.70621488,0.00018763,2]
[379578703,1755340598429,164.0,7.9e-07,2]
[379578707,1755340611281,527.8298836,0.00018683,2]
[379578709,1755340618338,10000.0,0.00018683,2]
[379578713,1755340639072,-3163.0,0.00019485,2]
[379578731,1755340766417,2699.409824,0.00018683,2]
[379578747,1755340909108,-324.04911924,0.00018996,2]
[379578748,1755340909131,-197.06814281,0.0001922,2]
[379578749,1755340909153,-185.17064661,0.00019227,2]
[379578750,1755340909175,-167.71209134,0.00019484,2]
[379578751,1755340986527,6780.3653277,0.00018652,2]
[379578761,1755341039948,-1000.0,0.000188,2]
[379578762,1755341039969,-137.0,0.00018801,2]
[379578766,1755341053149,677.44489093,0.00018763,2]
[379578787,1755341172844,-32.748389,0.00018801,2]
[379578788,1755341172866,-150.0,0.00019,2]
[379578789,1755341172889,-1000.0,0.000192,2]
[379578790,1755341172910,-143.251611,0.00019299,2]
[379578811,1755341231100,-150.77383924,0.00018801,2]
[379578812,1755341231120,-6.748389,0.00019299,2]
[379578813,1755341231140,-112.34457841,0.00019484,2]
[379578814,1755341231160,-93.02415643,0.00019579,2]
[379578818,1755341246113,-100.52903976,0.00019579,2]
[379578819,1755341246134,-160.0,0.00019583,2]
[379578820,1755341246155,-151.32571547,0.00019672,2]
[379578821,1755341246177,-201.39184112,0.00019677,2]
[379578822,1755341249072,-829.47232605,0.00019677,2]
[379578823,1755341249110,-169.13583283,0.00019677,2]
[379578824,1755341249131,-907.90784635,0.00019678,2]
[379578855,1755341432255,-256.0,0.00018876,2]
[379578856,1755341432265,-68.24879281,0.000189,2]
[379578857,1755341432276,-81.75120719,0.000189,2]
[379578858,1755341432286,-188.41253449,0.00019578,2]
[379578859,1755341432296,-157.0,0.00019677,2]
[379578860,1755341432313,-300.0,0.00019677,2]
[379578862,1755341432322,-300.0,0.00019677,2]
[379578863,1755341432331,-300.0,0.00019677,2]
[379578865,1755341432340,-1200.0,0.00019677,2]
[379578867,1755341432349,-300.0,0.00019677,2]
[379578868,1755341432359,-612.71516315,0.00019678,2]
[379578869,1755341432368,-500.0,0.00019678,2]
[379578870,1755341432377,-296.65270753,0.00019678,2]
[379578871,1755341432388,-500.0,0.00019678,2]
[379578872,1755341432398,-500.0,0.00019678,2]
[379578873,1755341432407,-263.96319764,0.00019678,2]
[379578874,1755341432419,-236.03680236,0.00019678,2]
[379578875,1755341432428,-254.59049481,0.00019678,2]
[379578876,1755341432438,-500.0,0.00019678,2]
[379578877,1755341432448,-500.0,0.00019678,2]
[379578878,1755341432459,-547.24123175,0.00019678,2]
[379578879,1755341432468,-323.93153433,0.00019678,2]
[379578880,1755341432477,-500.0,0.00019678,2]
[379578881,1755341432487,-500.0,0.00019678,2]
[379578882,1755341432497,-500.0,0.00019678,2]
[379578883,1755341432506,-500.0,0.00019678,2]
[379578884,1755341432515,-519.33424492,0.00019678,2]
[379578885,1755341432525,-500.0,0.00019678,2]
[379578886,1755341432533,-500.0,0.00019678,2]
[379578887,1755341432543,-500.0,0.00019678,2]
[379578888,1755341432552,-500.0,0.00019678,2]
[379578889,1755341432561,-500.0,0.00019678,2]
[379578890,1755341432570,-500.0,0.00019678,2]
[379578891,1755341432580,-500.0,0.00019678,2]
[379578892,1755341432589,-500.0,0.00019678,2]
[379578893,1755341432598,-500.0,0.00019678,2]
[379578894,1755341432607,-500.0,0.00019678,2]
[379578895,1755341432617,-500.0,0.00019678,2]
[379578896,1755341432626,-500.0,0.00019678,2]
[379578897,1755341432635,-500.0,0.00019678,2]
[379578898,1755341432644,-353.86569183,0.00019678,2]
[379578899,1755341432664,-146.13430817,0.00019678,2]
[379578900,1755341432673,-500.0,0.00019678,2]
[379578901,1755341432682,-500.0,0.00019678,2]
[379578902,1755341432691,-500.0,0.00019678,2]
[379578903,1755341432701,-500.0,0.00019678,2]
[379578904,1755341432710,-268.6903937,0.00019678,2]
[379578905,1755341432719,-500.0,0.00019678,2]
[379578906,1755341432728,-500.0,0.00019678,2]
[379578907,1755341432737,-500.0,0.00019678,2]
[379578908,1755341432747,-500.0,0.00019678,2]
[379578909,1755341432757,-500.0,0.00019678,2]
[379578910,1755341432766,-4321.51157916,0.00019678,2]
[379579003,1755341438127,-441.2363975,0.00019678,2]
[379579004,1755341438180,-968.12663099,0.00019678,2]
[379579005,1755341438235,-482.63023245,0.00019678,2]
[379579006,1755341438291,-43786.4951599,0.00019678,2]
[379579007,1755341438301,-70325.20788897,0.00019684,2]
[379579008,1755341438310,-500.0,0.00019684,2]
[379579009,1755341438319,-407.27,0.0001969,3]
[379579010,1755341438329,-417.71779267,0.00019699,2]
[379579011,1755341438338,-500.0,0.000197,2]
[379579012,1755341438347,-244.21430966,0.00019741,2]
[379579013,1755341438357,-1000.0,0.000198,3]
[379579014,1755341438366,-1000.0,0.000198,4]
[379579015,1755341438375,-171.807229,0.00019863,2]
[379579016,1755341438384,-203.64,0.0001989,3]
[379579017,1755341438393,-610.93,0.0001989,3]
[379579018,1755341438403,-13179.58308756,0.000199,2]
[379579020,1755341438412,-431.9034523,0.00020055,2]
[379579029,1755341438422,-293.7439445,0.00020329,2]
[379579030,1755341438594,-431.9034523,0.00020341,2]
[379579032,1755341438604,-431.9034523,0.00020341,2]
[379579034,1755341438613,-431.9034523,0.00020341,2]
[379579036,1755341438623,-583.22,0.00020406,2]
[379579038,1755341438632,-13179.58308742,0.00020408,2]
[379579039,1755341438642,-431.9034523,0.00020441,2]
[379579041,1755341438651,-293.7439445,0.00020478,2]
[379579043,1755341438661,-293.7439445,0.00020478,2]
[379579045,1755341438670,-293.7439445,0.00020478,2]
[379579047,1755341438680,-587.487889,0.00020478,2]
[379579049,1755341438690,-431.9034523,0.00020541,2]
[379579051,1755341438699,-293.7439445,0.00020578,2]
[379579053,1755341438709,-500.0,0.00020667,2]
[379579055,1755341438718,-180.00633299,0.00020667,2]
[379579057,1755341438727,-500.0,0.00020667,2]
[379579059,1755341438737,-293.7439445,0.00020678,2]
[379579061,1755341438746,-1000.0,0.000208,5]
[379579063,1755341438756,-13179.58308742,0.00020916,2]
[379579065,1755341438765,-431.9034523,0.00021014,2]
[379579067,1755341438774,-431.9034523,0.00021014,2]
[379579068,1755341438783,-431.9034523,0.00021014,2]
[379579070,1755341438792,-431.9034523,0.00021014,2]
[379579072,1755341438801,-431.9034523,0.00021014,2]
[379579074,1755341438810,-431.9034523,0.00021014,2]
[379579076,1755341438820,-431.9034523,0.00021014,2]
[379579078,1755341438829,-431.9034523,0.00021014,2]
[379579080,1755341438839,-431.9034523,0.00021014,2]
[379579082,1755341438849,-431.9034523,0.00021014,2]
[379579084,1755341438859,-431.9034523,0.00021014,2]
[379579086,1755341438868,-431.9034523,0.00021014,2]
[379579088,1755341438877,-431.9034523,0.00021014,2]
[379579090,1755341438887,-431.9034523,0.00021014,2]
[379579092,1755341438896,-431.9034523,0.00021014,2]
[379579094,1755341438905,-431.9034523,0.00021014,2]
[379579096,1755341438918,-431.9034523,0.00021014,2]
[379579098,1755341438927,-431.9034523,0.00021014,2]
[379579100,1755341438937,-431.9034523,0.00021014,2]
[379579102,1755341438946,-431.9034523,0.00021014,2]
[379579104,1755341438956,-821.36944068,0.00021018,2]
[379579106,1755341438965,-796.5974533,0.00021041,2]
[379579108,1755341438975,-814.54,0.0002106,3]
[379579110,1755341438984,-417.15472785,0.00021082,2]
[379579112,1755341438994,-160.0,0.00021082,2]
[379579114,1755341439005,-232.11368524,0.00021082,2]
[379579116,1755341439015,-160.0,0.00021082,2]
[379579118,1755341439025,-431.9034523,0.000211,2]
[379579120,1755341439034,-160.0,0.00021114,2]
[379579122,1755341439043,-160.0,0.00021114,2]
[379579124,1755341439053,-17842.522448,0.00021118,2]
[379579126,1755341439062,-151.0,0.00021118,2]
[379579128,1755341439071,-500.0,0.00021118,2]
[379579130,1755341439081,-267.05106447,0.00021118,2]
[379579132,1755341439091,-151.0,0.00021118,2]
[379579133,1755341439100,-151.0,0.00021118,2]
[379579135,1755341439110,-151.0,0.00021118,2]
[379579137,1755341439119,-151.0,0.00021118,2]
[379579139,1755341439129,-151.0,0.00021118,2]
[379579141,1755341439138,-151.0,0.00021118,2]
[379579143,1755341439147,-151.0,0.00021118,2]
[379579145,1755341439156,-151.0,0.00021118,2]
[379579147,1755341439165,-151.0,0.00021118,2]
[379579149,1755341439174,-151.0,0.00021118,2]
[379579151,1755341439185,-151.0,0.00021118,2]
[379579153,1755341439194,-151.0,0.00021118,2]
[379579155,1755341439203,-293.7439445,0.00021151,2]
[379579157,1755341439214,-293.7439445,0.00021151,2]
[379579159,1755341439224,-293.7439445,0.00021151,2]
[379579160,1755341439233,-293.7439445,0.00021151,2]
[379579162,1755341439242,-293.7439445,0.00021151,2]
[379579164,1755341439253,-293.7439445,0.00021151,2]
[379579166,1755341439262,-293.7439445,0.00021151,2]
[379579168,1755341439271,-293.7439445,0.00021151,2]
[379579170,1755341439280,-293.7439445,0.00021151,2]
[379579172,1755341439290,-293.7439445,0.00021151,2]
[379579174,1755341439299,-293.7439445,0.00021151,2]
[379579176,1755341439308,-293.7439445,0.00021151,2]
[379579178,1755341439317,-293.7439445,0.00021151,2]
[379579180,1755341439326,-293.7439445,0.00021151,2]
[379579182,1755341439335,-293.7439445,0.00021156,2]
[379579184,1755341439345,-215.68093138,0.00021163,2]
[379579185,1755341439355,-293.7439445,0.00021178,2]
[379579186,1755341439364,-1000.0,0.00021215,2]
[379579187,1755341439374,-407.28,0.0002126,3]
[379579188,1755341439383,-821.36944065,0.00021286,2]
[379579189,1755341439393,-1166.44,0.00021378,2]
[379579190,1755341439402,-13179.58308742,0.00021424,2]
[379579191,1755341439411,-1680.0,0.00021433,2]
[379579192,1755341439420,-420.0,0.00021433,2]
[379579193,1755341439430,-420.0,0.00021433,2]
[379579194,1755341439439,-1680.0,0.00021536,2]
[379579195,1755341439448,-821.36944065,0.00021555,2]
[379579196,1755341439457,-2291.0,0.00021606,2]
[379579197,1755341439466,-2291.0,0.00021731,2]
[379579198,1755341439475,-266.0,0.00021791,2]
[379579199,1755341439485,-1000.0,0.000218,6]
[379579200,1755341439494,-1000.0,0.000218,7]
[379579201,1755341439504,-1045.12,0.00021816,2]
[379579202,1755341439513,-1045.12,0.00021816,2]
[379579203,1755341439522,-1045.12,0.00021816,2]
[379579204,1755341439531,-1045.12,0.00021816,2]
[379579205,1755341439541,-1045.12,0.00021816,2]
[379579206,1755341439550,-1045.12,0.00021816,2]
[379579207,1755341439559,-5053.77692164,0.00021816,2]
[379579208,1755341439568,-24041.6090225,0.00021817,3]
[379579209,1755341439577,-462.1417622,0.00021817,3]
[379579210,1755341439587,-160.0,0.00021817,3]
[379579211,1755341439596,-417.15472785,0.00021817,3]
[379579212,1755341439605,-242.98646823,0.00021817,2]
[379579213,1755341439614,-970.97392706,0.00021817,2]
[379579214,1755341439624,-821.36944065,0.00021823,2]
[379579215,1755341439634,-266.0,0.00021878,2]
[379579216,1755341439644,-151.0,0.000219,4]
[379579217,1755341439654,-159.338,0.00021916,2]
[379579218,1755341439663,-1045.12,0.00021916,2]
[379579219,1755341439673,-1045.12,0.00021916,2]
[379579220,1755341439682,-1045.12,0.00021916,2]
[379579221,1755341439691,-1045.12,0.00021916,2]
[379579222,1755341439701,-1045.12,0.00021916,2]
[379579223,1755341439710,-1045.12,0.00021916,2]
[379579224,1755341439719,-1045.12,0.00021916,2]
[379579225,1755341439729,-1045.12,0.00021916,2]
[379579226,1755341439739,-1045.12,0.00021916,2]
[379579227,1755341439748,-1045.12,0.00021916,2]
[379579228,1755341439758,-480.0,0.00021917,3]
[379579229,1755341439768,-480.0,0.00021917,3]
[379579230,1755341439778,-480.0,0.00021917,3]
[379579231,1755341439787,-480.0,0.00021917,3]
[379579233,1755341439797,-282.92837081,0.00021917,3]
[379579234,1755341439806,-480.0,0.00021917,3]